bitfinex/quotes_ETHUSD_20250827
["timestamp","ask_amount","ask_price","bid_price","bid_amount"]
[1756289541460,1e-08,4610.4,4610.3,6.91865624]
[1756289541664,1e-08,4610.4,4610.3,7.8740869]
[1756289541864,1e-08,4610.4,4610.3,8.3405869]
[1756289542065,1e-08,4610.4,4610.3,11.3405869]
[1756289542378,0.02,4610.8,4610.7,2.82886806]
[1756289542680,0.02,4610.8,4610.7,6.62166806]
[1756289542873,0.02,4610.8,4610.7,7.79869738]
[1756289543046,0.02,4610.8,4610.7,8.26519738]
[1756289543246,0.0192,4610.8,4610.7,8.26519738]
[1756289544387,0.0192,4610.8,4610.7,11.26519738]
[1756289544553,0.42628947,4612.2,4610.9,2.82877399]
[1756289544757,0.42628947,4612.2,4611.7,2.82839777]
[1756289544967,0.086939,4612.2,4611.7,6.62119777]
[1756289545290,0.306,4611.8,4611.7,6.62119777]
[1756289545854,0.306,4611.8,4611.7,2.93719777]
[1756289546053,0.7698,4611.8,4611.7,6.62019777]
[1756289546787,0.306,4611.8,4611.7,6.62019777]
[1756289547487,0.7698,4611.8,4611.7,6.78595387]
[1756289547650,0.306,4611.8,4611.7,6.78595387]
[1756289548056,0.02,4611.8,4611.7,7.02673661]
[1756289548266,0.306,4611.8,4611.7,7.02673661]
[1756289548610,0.02,4611.8,4611.7,7.32253661]
[1756289549470,0.306,4611.8,4611.7,3.34373661]
[1756289549670,0.7698,4611.8,4611.7,6.78595387]
[1756289551304,0.7698,4611.8,4611.7,6.78495387]
[1756289551806,0.7698,4611.8,4611.7,3.10295387]
[1756289552008,0.7698,4611.8,4611.7,6.78495387]
[1756289552420,0.7698,4611.8,4611.7,3.10295387]
[1756289552622,0.7698,4611.8,4611.7,6.78495387]
[1756289553327,0.02,4611.8,4611.7,7.08075387]
[1756289553529,0.02,4611.8,4611.7,7.70987582]
[1756289553825,0.02,4611.8,4611.7,8.00567582]
[1756289554185,0.02,4611.8,4611.7,4.32367582]
[1756289554385,0.02,4611.8,4611.7,7.70887582]
[1756289554983,0.306,4611.8,4611.7,7.70887582]
[1756289555296,0.306,4611.8,4611.7,4.02787582]
[1756289555502,0.306,4611.8,4611.7,6.78395387]
[1756289558035,0.02,4611.8,4611.7,6.78395387]
[1756289558516,0.306,4611.8,4611.7,6.78395387]
[1756289558688,0.02,4611.8,4611.7,6.78395387]
[1756289558890,0.02,4611.8,4611.7,7.07975387]
[1756289559415,0.02,4611.8,4611.7,3.10295387]
[1756289559630,0.02,4611.8,4611.7,7.67422979]
[1756289559790,0.02,4611.8,4611.7,8.11904582]
[1756289561813,0.022,4611.8,4611.7,8.11904582]
[1756289563122,0.022,4611.8,4611.7,8.11804582]
[1756289564194,0.022,4611.8,4611.7,3.67674582]
[1756289564195,0.308,4611.8,4611.7,3.67674582]
[1756289564395,0.022,4611.8,4611.7,7.35574582]
[1756289564818,0.022,4611.8,4611.7,7.65154582]
[1756289565728,0.022,4611.8,4611.7,8.11804582]
[1756289567731,0.0212,4611.8,4611.7,8.11804582]
[1756289568929,0.0212,4611.8,4611.7,11.11804582]
[1756289569729,0.0212,4611.8,4611.7,11.60224582]
[1756289569918,0.0212,4611.8,4611.7,11.60124582]
[1756289571393,1e-08,4611.8,4611.7,11.60124582]
[1756289571598,1e-08,4611.8,4611.7,17.769322]
[1756289573938,1e-08,4611.8,4611.7,17.768322]
[1756289577539,1e-08,4611.8,4611.7,14.091322]
[1756289577714,1e-08,4611.8,4611.7,17.768322]
[1756289578841,1e-08,4611.8,4611.7,17.767322]
[1756289579209,1e-08,4611.8,4611.7,14.091322]
[1756289579415,1e-08,4611.8,4611.7,13.624822]
[1756289579614,1e-08,4611.8,4611.7,17.748222]
[1756289581119,1e-08,4611.8,4611.7,13.624822]
[1756289581315,1e-08,4611.8,4611.7,17.748222]
[1756289582638,1e-08,4611.8,4611.7,14.072222]
[1756289582833,1e-08,4611.8,4611.7,17.747222]
[1756289583025,1e-08,4611.8,4611.7,17.299822]
[1756289583537,1e-08,4611.8,4611.7,17.747222]
[1756289584818,1e-08,4611.8,4611.7,20.033222]
[1756289585018,1e-08,4611.8,4611.7,17.747222]
[1756289587167,0.02,4613.8,4613.7,2.16745778]
[1756289587475,0.02,4613.8,4613.7,7.50645778]
[1756289587663,0.3226,4613.8,4613.7,5.339]
[1756289587819,0.7676,4613.8,4613.7,7.50845778]
[1756289589452,0.7676,4613.8,4613.7,9.14685692]
[1756289589815,0.7676,4613.8,4613.7,8.16845778]
[1756289590850,0.7676,4613.8,4613.7,4.49445778]
[1756289591048,0.7676,4613.8,4613.7,8.16745778]
[1756289592262,0.7668,4613.8,4613.7,8.16745778]
[1756289594954,0.3218,4613.8,4613.7,8.16745778]
[1756289595154,0.7668,4613.8,4613.7,5.53875692]
[1756289595565,0.7668,4613.8,4613.7,9.21075692]
[1756289596548,0.7688,4613.8,4613.7,9.21075692]
[1756289597083,0.3238,4613.8,4613.7,9.21075692]
[1756289597267,0.3238,4613.8,4613.7,9.31875692]
[1756289598182,0.7688,4613.8,4613.7,9.31875692]
[1756289598868,0.0212,4613.8,4613.7,9.31875692]
[1756289599179,0.3238,4613.8,4613.7,9.31875692]
[1756289599585,0.3238,4613.8,4613.7,9.31775692]
[1756289601364,0.0212,4613.8,4613.7,9.62695692]
[1756289602973,0.0212,4613.8,4613.7,10.06855692]
[1756289603398,0.0212,4613.8,4613.7,9.62695692]
[1756289603867,0.0212,4613.8,4613.7,10.06855692]
[1756289604286,0.0212,4613.8,4613.7,9.62695692]
[1756289604491,0.0212,4613.8,4613.7,10.06855692]
[1756289605013,0.0212,4613.8,4613.7,9.62695692]
[1756289605168,0.0212,4613.8,4613.7,12.62695692]
[1756289605363,0.0212,4613.8,4613.7,12.96055692]
[1756289605591,0.0212,4613.8,4613.7,13.06855692]
[1756289605907,0.0212,4613.8,4613.7,9.39755692]
[1756289606104,0.0212,4613.8,4613.7,13.06755692]
[1756289606348,0.0212,4613.8,4613.7,12.62595692]
[1756289606708,0.0212,4613.8,4613.7,8.95595692]
[1756289606928,0.0212,4613.8,4613.7,12.62595692]
[1756289607143,0.0212,4613.8,4613.7,8.95595692]
[1756289607445,0.0212,4613.8,4613.7,13.06755692]
[1756289607795,0.0212,4613.8,4613.7,13.54005692]
[1756289608403,0.0212,4613.8,4613.7,19.7081331]
[1756289608809,0.0212,4613.8,4613.7,13.09745692]
[1756289609321,0.0212,4613.8,4613.7,12.78825692]
[1756289609519,0.3081,4613.8,4613.7,12.78825692]
[1756289609830,0.3081,4613.8,4613.7,13.09745692]
[1756289609831,0.0212,4613.8,4613.7,13.09745692]
[1756289611940,0.3081,4613.8,4613.7,12.78825692]
[1756289612239,0.0212,4613.8,4613.7,9.11925692]
[1756289612438,0.3081,4613.8,4613.7,9.11925692]
[1756289612739,0.3081,4613.8,4613.7,12.78825692]
[1756289613920,0.3081,4613.8,4613.7,9.11925692]
[1756289614119,0.3081,4613.8,4613.7,12.78725692]
[1756289614334,0.7806,4613.8,4613.7,8.64675692]
[1756289614610,0.7806,4613.8,4613.7,12.31475692]
[1756289615340,0.7806,4613.8,4613.7,9.29837692]
[1756289615638,0.7806,4613.8,4613.7,12.96637692]
[1756289615852,0.3081,4613.8,4613.7,3.47091914]
[1756289616003,0.7806,4613.8,4613.7,7.50245778]
[1756289616615,0.7798,4613.8,4613.7,7.50245778]
[1756289617540,0.3073,4613.8,4613.7,7.99629816]
[1756289617743,0.0204,4613.8,4613.7,9.07349816]
[1756289618442,0.0204,4613.8,4613.7,8.76429816]
[1756289619343,0.0204,4613.8,4613.7,5.09629816]
[1756289619541,0.0204,4613.8,4613.7,8.76429816]
[1756289620459,0.3073,4613.8,4613.7,8.76429816]
[1756289621751,0.0204,4613.8,4613.7,8.76429816]
[1756289623423,0.3073,4613.8,4613.7,8.76329816]
[1756289623633,0.3073,4613.8,4613.7,4.60245778]
[1756289623834,0.3073,4613.8,4613.7,8.26945778]
[1756289624721,0.3073,4613.8,4613.7,4.60245778]
[1756289624926,0.3073,4613.8,4613.7,8.26945778]
[1756289626154,0.0204,4613.8,4613.7,8.26945778]
[1756289626324,0.0204,4613.8,4613.7,8.57865778]
[1756289626529,0.0204,4613.8,4613.7,9.74498642]
[1756289628469,0.0204,4613.8,4613.7,10.18658642]
[1756289629529,0.0204,4613.8,4613.7,9.74498642]
[1756289630462,0.3194,4613.8,4613.7,9.43578642]
[1756289630659,0.3194,4613.8,4613.7,9.43478642]
[1756289630967,0.3194,4613.8,4613.7,4.60245778]
[1756289631134,0.7757,4613.8,4613.7,3.94245778]
[1756289631328,0.7757,4613.8,4613.7,7.60845778]
[1756289631552,0.7757,4613.8,4613.7,5.441]
[1756289631758,0.7757,4613.8,4613.7,7.50045778]
[1756289633331,0.7757,4613.8,4613.7,5.332]
[1756289633732,0.7757,4613.8,4613.7,7.49945778]
[1756289634130,0.7757,4613.8,4613.7,5.332]
[1756289635071,0.7757,4613.8,4613.7,7.49945778]
[1756289635744,0.7757,4613.8,4613.7,5.332]
[1756289636171,0.7757,4613.8,4613.7,7.49945778]
[1756289636677,0.7757,4613.8,4613.7,5.332]
[1756289636854,0.7757,4613.8,4613.7,7.49945778]
[1756289637283,0.7757,4613.8,4613.7,5.332]
[1756289637577,0.3194,4613.8,4613.7,7.49945778]
[1756289638643,0.7757,4613.8,4613.7,7.49945778]
[1756289638846,0.0204,4613.8,4613.7,7.49945778]
[1756289640075,0.7757,4613.8,4613.7,3.83445778]
[1756289640266,0.7757,4613.8,4613.7,7.49945778]
[1756289640781,0.3194,4613.8,4613.7,7.49945778]
[1756289641080,0.0204,4613.8,4613.7,7.49945778]
[1756289641381,0.0196,4613.8,4613.7,7.49945778]
[1756289642174,0.0196,4613.8,4613.7,7.81065778]
[1756289642785,0.0196,4613.8,4613.7,7.49945778]
[1756289643859,0.0196,4613.8,4613.7,7.81065778]
[1756289644188,0.0196,4613.8,4613.7,9.01090568]
[1756289644360,0.0196,4613.8,4613.7,9.54930568]
[1756289644560,0.0196,4613.8,4613.7,9.65730568]
[1756289646786,0.0196,4613.8,4613.7,9.65630568]
[1756289649963,1e-08,4613.8,4613.7,12.65630568]
[1756289653200,1e-08,4613.8,4613.7,8.99230568]
[1756289653407,1e-08,4613.8,4613.7,12.65430568]
[1756289653615,1e-08,4613.8,4613.7,12.22390568]
[1756289653929,1e-08,4613.8,4613.7,12.65430568]
[1756289654227,1e-08,4613.8,4613.7,12.54630568]
[1756289654410,1e-08,4613.8,4613.7,12.65430568]
[1756289655295,1e-08,4613.8,4613.7,8.99230568]
[1756289655507,1e-08,4613.8,4613.7,12.65430568]
[1756289656494,1e-08,4613.8,4613.7,12.81832967]
[1756289657414,1e-08,4613.8,4613.7,12.38792967]
[1756289657845,1e-08,4613.8,4613.7,12.81832967]
[1756289659510,1e-08,4613.8,4613.7,9.15632967]
[1756289659710,1e-08,4613.8,4613.7,12.81732967]
[1756289660554,1e-08,4613.8,4613.7,8.72592967]
[1756289660715,1e-08,4613.8,4613.7,12.38692967]
[1756289660910,1e-08,4613.8,4613.7,12.81902967]
[1756289663452,1e-08,4613.8,4613.7,9.15802967]
[1756289663653,1e-08,4613.8,4613.7,12.81902967]
[1756289665724,0.00120001,4614.3,4614.2,5.82722292]
[1756289665928,0.00120001,4614.3,4614.2,10.58667407]
[1756289666128,0.74750001,4614.3,4614.2,7.03467407]
[1756289666373,0.29590001,4614.3,4614.2,10.69467407]
[1756289667525,0.00120001,4614.3,4614.2,10.98037407]
[1756289667944,0.00120001,4614.3,4614.2,10.69467407]
[1756289668957,0.00120001,4614.3,4614.2,10.98037407]
[1756289669346,0.00120001,4614.3,4614.2,11.45197407]
[1756289670367,0.00120001,4614.3,4614.2,11.88407407]
[1756289670545,0.00120001,4614.3,4614.2,11.45197407]
[1756289670753,0.00120001,4614.3,4614.2,11.88407407]
[1756289672064,0.00120001,4614.3,4614.2,11.45197407]
[1756289672364,0.00120001,4614.3,4614.2,11.88407407]
[1756289673564,0.00120001,4614.3,4614.2,11.45197407]
[1756289674134,0.00120001,4614.3,4614.2,11.88407407]
[1756289674636,0.00120001,4614.3,4614.2,11.88307407]
[1756289674838,0.00120001,4614.3,4614.2,11.16527407]
[1756289675169,0.29590001,4614.3,4614.2,11.16527407]
[1756289675356,0.00120001,4614.3,4614.2,11.45097407]
[1756289676662,0.00120001,4614.3,4614.2,8.22407407]
[1756289676869,0.00120001,4614.3,4614.2,11.88307407]
[1756289678371,0.00120001,4614.3,4614.2,11.45097407]
[1756289679962,0.00120001,4614.3,4614.2,7.79197407]
[1756289680135,0.00120001,4614.3,4614.2,11.44997407]
[1756289680539,0.00120001,4614.3,4614.2,7.79197407]
[1756289680762,0.022,4614.8,4614.7,2.1669881]
[1756289681075,0.022,4614.8,4614.7,11.0323923]
[1756289681279,0.3167,4614.8,4614.7,11.0323923]
[1756289681473,0.3167,4614.8,4614.7,11.1403923]
[1756289682561,0.022,4614.8,4614.7,11.1403923]
[1756289683339,0.022,4614.8,4614.7,11.4260923]
[1756289683564,0.022,4614.8,4614.7,12.0860923]
[1756289683764,0.022,4614.8,4614.7,12.5181923]
[1756289685171,0.022,4614.8,4614.7,8.8601923]
[1756289685478,0.022,4614.8,4614.7,18.68526848]
[1756289687586,0.022,4614.8,4614.7,18.25316848]
[1756289690518,0.0212,4614.8,4614.7,18.25316848]
[1756289691509,0.0212,4614.8,4614.7,14.59616848]
[1756289691702,0.0212,4614.8,4614.7,18.69776848]
[1756289693120,0.0212,4614.8,4614.7,18.25216848]
[1756289693425,0.0212,4614.8,4614.7,18.69776848]
[1756289693627,0.0212,4614.8,4614.7,18.25216848]
[1756289694884,0.0212,4614.8,4614.7,14.59616848]
[1756289695085,0.0212,4614.8,4614.7,18.25216848]
[1756289697603,0.0212,4614.8,4614.7,18.25116848]
[1756289697803,0.0212,4614.8,4614.7,17.96546848]
[1756289698045,0.0212,4614.8,4614.7,18.25076848]
[1756289699932,0.0212,4614.8,4614.7,17.96446848]
[1756289700316,0.7696,4614.8,4614.7,8.1423923]
[1756289700547,0.7696,4614.8,4614.7,11.7963923]
[1756289701517,0.3172,4614.8,4614.7,5.3154042]
[1756289701716,0.7696,4614.8,4614.7,3.9409881]
[1756289701946,0.3172,4614.8,4614.7,7.61665798]
[1756289702131,0.3172,4614.8,4614.7,8.2549881]
[1756289702331,0.0212,4614.8,4614.7,18.01946886]
[1756289702535,0.0212,4614.8,4614.7,18.46506886]
[1756289702921,0.0212,4614.8,4614.7,18.01946886]
[1756289703252,0.0212,4614.8,4614.7,18.47186886]
[1756289704366,0.3172,4614.8,4614.7,12.01849268]
[1756289705330,0.0212,4614.8,4614.7,8.36449268]
[1756289705538,0.0212,4614.8,4614.7,12.30379268]
[1756289706823,0.002,4615.3,4615.2,2.82675333]
[1756289707027,0.002,4615.3,4615.2,10.00177846]
[1756289707249,0.002,4615.3,4615.2,10.81901093]
[1756289707634,0.002,4615.3,4615.2,10.92701093]
[1756289709759,0.02,4615.8,4615.7,2.82651862]
[1756289709950,0.02,4615.8,4615.7,8.14551862]
[1756289710150,0.02,4615.8,4615.7,12.36807048]
[1756289710362,0.7684,4615.8,4615.7,12.36807048]
[1756289710570,0.316,4615.8,4615.7,12.36807048]
[1756289710744,0.02,4615.8,4615.7,12.65337048]
[1756289710944,0.02,4615.8,4615.7,12.36807048]
[1756289711493,0.316,4615.8,4615.7,12.36807048]
[1756289711678,0.7684,4615.8,4615.7,12.36807048]
[1756289711852,0.7684,4615.8,4615.7,11.25351862]
[1756289712052,0.7684,4615.8,4615.7,7.60051862]
[1756289712257,0.7684,4615.8,4615.7,11.25351862]
[1756289713586,0.7684,4615.8,4615.7,7.60051862]
[1756289713881,0.7684,4615.8,4615.7,11.25251862]
[1756289714681,0.7676,4615.8,4615.7,11.25251862]
[1756289716053,0.7676,4615.8,4615.7,11.90387362]
[1756289717955,0.3152,4615.8,4615.7,8.25187362]
[1756289718251,0.3152,4615.8,4615.7,11.90387362]
[1756289719383,0.7676,4615.8,4615.7,8.41062013]
[1756289719586,0.7676,4615.8,4615.7,11.41026513]
[1756289721519,0.7676,4615.8,4615.7,7.75926513]
[1756289721797,0.7676,4615.8,4615.7,11.41026513]
[1756289723700,0.3152,4615.8,4615.7,7.09926513]
[1756289723854,0.7646,4615.8,4615.7,1.666]
[1756289724054,0.7646,4615.8,4615.7,5.317]
[1756289724468,0.7646,4615.8,4615.7,7.48351862]
[1756289726283,0.7646,4615.8,4615.7,5.316]
[1756289726483,0.7646,4615.8,4615.7,7.48251862]
[1756289727399,0.3172,4615.8,4615.7,7.48251862]
[1756289727598,0.7646,4615.8,4615.7,7.48251862]
[1756289727806,0.3172,4615.8,4615.7,7.48251862]
[1756289729515,0.7646,4615.8,4615.7,3.83251862]
[1756289729814,0.7646,4615.8,4615.7,7.48251862]
[1756289730475,0.0212,4615.8,4615.7,7.48251862]
[1756289731322,0.0212,4615.8,4615.7,11.45441862]
[1756289731485,0.0212,4615.8,4615.7,12.00541862]
[1756289731684,0.0212,4615.8,4615.7,11.56241862]
[1756289732617,0.0212,4615.8,4615.7,11.25051862]
[1756289733121,0.0212,4615.8,4615.7,11.56241862]
[1756289733332,0.0212,4615.8,4615.7,13.0408991]
[1756289734037,0.0212,4615.8,4615.7,13.4838991]
[1756289734235,0.0212,4615.8,4615.7,12.00541862]
[1756289739127,0.0204,4615.8,4615.7,12.00541862]
[1756289741206,0.0204,4615.8,4615.7,11.56241862]
[1756289742316,0.0204,4615.8,4615.7,12.00541862]
[1756289743949,0.3273,4615.8,4615.7,11.24851862]
[1756289744307,0.3273,4615.8,4615.7,11.35651862]
[1756289745334,0.3273,4615.8,4615.7,7.70851862]
[1756289745540,0.7747,4615.8,4615.7,11.35651862]
[1756289745749,0.3273,4615.8,4615.7,7.04851862]
[1756289745907,0.7747,4615.8,4615.7,7.58851862]
[1756289747449,0.3273,4615.8,4615.7,7.58851862]
[1756289747645,0.0204,4615.8,4615.7,8.87881882]
[1756289747851,0.0204,4615.8,4615.7,9.98181882]
[1756289748754,0.0204,4615.8,4615.7,10.18499482]
[1756289748954,0.0204,4615.8,4615.7,13.18499482]
[1756289752216,1e-08,4615.8,4615.7,13.18499482]
[1756289757325,1e-08,4615.8,4615.7,9.53699482]
[1756289757524,1e-08,4615.8,4615.7,13.18299482]
[1756289758145,1e-08,4615.8,4615.7,9.53699482]
[1756289758353,1e-08,4615.8,4615.7,13.18299482]
[1756289761518,1e-08,4615.8,4615.7,9.53699482]
[1756289761749,1e-08,4615.8,4615.7,13.18299482]
[1756289762929,1e-08,4615.8,4615.7,8.43399482]
[1756289763134,0.30010001,4615.8,4615.7,8.12209482]
[1756289763342,0.30010001,4615.8,4615.7,11.76709482]
[1756289763640,0.75690001,4615.8,4615.7,12.42709482]
[1756289763851,0.4576,4616.2,4616.1,2.82633088]
[1756289764170,0.3001,4616.2,4616.1,9.47133088]
[1756289764372,0.3001,4616.2,4616.1,9.57933088]
[1756289764977,0.7577,4616.2,4616.1,5.93433088]
[1756289765129,0.7577,4616.2,4616.1,10.03693088]
[1756289766341,0.7577,4616.2,4616.1,6.39193088]
[1756289766661,0.7577,4616.2,4616.1,10.03693088]
[1756289767571,0.7577,4616.2,4616.1,6.39193088]
[1756289767774,0.7577,4616.2,4616.1,9.57933088]
[1756289767964,0.7577,4616.2,4616.1,2.93433088]
[1756289768138,0.7577,4616.2,4616.1,6.57933088]
[1756289768472,0.7577,4616.2,4616.1,5.91933088]
[1756289769071,0.7577,4616.2,4616.1,2.27433088]
[1756289769236,0.7577,4616.2,4616.1,5.91833088]
[1756289770734,0.7577,4616.2,4616.1,2.27433088]
[1756289770933,0.7577,4616.2,4616.1,5.91833088]
[1756289771144,0.7577,4616.2,4616.1,2.27433088]
[1756289771350,0.3001,4616.2,4616.1,5.91833088]
[1756289771551,0.7577,4616.2,4616.1,5.91833088]
[1756289773950,0.3001,4616.2,4616.1,5.91833088]
[1756289774167,0.3001,4616.2,4616.1,6.57833088]
[1756289774537,0.7577,4616.2,4616.1,6.57833088]
[1756289774872,0.7577,4616.2,4616.1,7.03593088]
[1756289775681,0.7597,4616.2,4616.1,7.03593088]
[1756289775980,0.7597,4616.2,4616.1,6.57833088]
[1756289777776,0.3021,4616.2,4616.1,6.57833088]
[1756289777957,0.002,4616.2,4616.1,6.88923088]
[1756289778474,0.3021,4616.2,4616.1,6.57833088]
[1756289779376,0.3021,4616.2,4616.1,7.86883333]
[1756289779377,0.002,4616.2,4616.1,7.86883333]
[1756289779676,0.3021,4616.2,4616.1,7.55793333]
[1756289779882,0.3021,4616.2,4616.1,6.57833088]
[1756289780974,0.3021,4616.2,4616.1,6.57733088]
[1756289782783,0.3021,4616.2,4616.1,2.93433088]
[1756289782987,0.7333,4616.2,4616.1,3.643]
[1756289783152,0.7333,4616.2,4616.1,5.80933088]
[1756289784152,0.3021,4616.2,4616.1,5.80933088]
[1756289784466,0.002,4616.2,4616.1,6.09543088]
[1756289784780,0.002,4616.2,4616.1,6.75543088]
[1756289784981,0.002,4616.2,4616.1,8.28165644]
[1756289785882,0.002,4616.2,4616.1,7.81325644]
[1756289786050,0.002,4616.2,4616.1,8.28165644]
[1756289788090,0.0012,4616.2,4616.1,8.28165644]
[1756289788797,0.0012,4616.2,4616.1,11.28165644]
[1756289789005,0.0012,4616.2,4616.1,11.82085644]
[1756289791892,0.04,4616.8,4616.7,2.82604934]
[1756289792195,0.04,4616.8,4616.7,8.41665427]
[1756289793495,0.04,4616.8,4616.7,8.13404934]
[1756289794594,0.04,4616.8,4616.7,8.42014934]
[1756289794787,0.04,4616.8,4616.7,11.99654934]
[1756289794966,0.04,4616.8,4616.7,12.42774934]
[1756289795398,0.042,4616.8,4616.7,12.42774934]
[1756289795594,0.4312,4618.0,4617.9,2.16548647]
[1756289795761,0.2945,4618.0,4617.9,5.80748647]
[1756289795961,0.7257,4618.0,4617.9,5.80748647]
[1756289796396,0.2945,4618.0,4617.9,5.80748647]
[1756289796799,0.108,4618.4,4617.9,5.80748647]
[1756289796800,0.108,4618.4,4618.3,2.16529891]
[1756289796988,0.02,4618.8,4618.6,2.16512182]
[1756289797189,0.02,4618.8,4618.7,3.641]
[1756289797693,0.8537,4618.8,4618.7,3.641]
[1756289798194,0.8537,4618.8,4618.7,5.80611139]
[1756289799072,0.7457,4618.8,4618.7,5.80611139]
[1756289799400,0.3145,4618.8,4618.7,5.80611139]
[1756289799980,0.3145,4618.8,4618.7,7.75821139]
[1756289800180,0.3145,4618.8,4618.7,3.83111139]
[1756289800419,0.7457,4618.8,4618.7,8.13111139]
[1756289800620,0.7457,4618.8,4618.7,1.666]
[1756289800808,0.7457,4618.8,4618.7,5.306]
[1756289803788,0.7457,4618.8,4618.7,1.666]
[1756289803985,0.7457,4618.8,4618.7,5.306]
[1756289804390,0.7457,4618.8,4618.7,1.666]
[1756289804702,0.7457,4618.8,4618.7,5.306]
[1756289804897,0.7457,4618.8,4618.7,1.666]
[1756289805126,0.7457,4618.8,4618.7,5.306]
[1756289805324,0.7457,4618.8,4618.7,7.47111139]
[1756289805526,0.7457,4618.8,4618.7,1.666]
[1756289805716,0.7457,4618.8,4618.7,5.306]
[1756289806822,0.7457,4618.8,4618.3,1.665]
[1756289807023,0.5392,4618.7,4618.3,1.665]
[1756289807324,0.4312,4618.7,4618.3,1.665]
[1756289807627,2.16520515,4618.5,4618.4,3.639]
[1756289807830,0.4025,4618.4,4618.3,1.665]
[1756289808027,2.56775203,4618.4,4618.3,5.304]
[1756289808216,2.99895203,4618.4,4618.3,5.304]
[1756289808534,0.8337,4618.4,4618.3,5.304]
[1756289810226,0.4025,4618.4,4618.3,5.304]
[1756289812429,0.4017,4618.4,4618.3,5.304]
[1756289814232,0.3983,4618.4,4618.3,5.304]
[1756289815636,0.108,4618.4,4618.3,5.304]
[1756289816832,0.02,4618.8,4618.7,2.16511139]
[1756289817030,0.02,4618.8,4618.7,5.80311139]
[1756289817337,0.02,4618.8,4618.7,6.53961139]
[1756289820023,0.02,4618.8,4618.7,6.09511139]
[1756289820334,0.02,4618.8,4618.3,1.773]
[1756289820335,0.1302,4618.8,4618.3,1.773]
[1756289820651,0.1302,4618.8,4618.7,2.16511139]
[1756289820828,0.02,4618.8,4618.7,6.09511139]
[1756289821135,0.02,4618.8,4618.7,6.53961139]
[1756289821436,0.02,4618.8,4618.7,6.09511139]
[1756289821803,0.02,4618.8,4618.7,5.80311139]
[1756289822510,0.02,4618.8,4618.7,6.53961139]
[1756289822705,0.02,4618.8,4618.7,6.09511139]
[1756289822928,0.02,4618.8,4618.7,6.53961139]
[1756289824017,0.02,4618.8,4618.7,7.19961139]
[1756289824223,0.02,4618.8,4618.7,8.24409304]
[1756289825434,0.02,4618.8,4618.7,7.30661139]
[1756289825631,0.02,4618.8,4618.7,5.91011139]
[1756289825840,0.02,4618.8,4618.7,6.64661139]
[1756289828448,0.02,4618.8,4618.7,7.30661139]
[1756289828812,0.02,4618.8,4618.7,10.30661139]
[1756289829246,0.02,4618.8,4618.7,11.56459304]
[1756289830920,0.02,4618.8,4618.7,7.92759304]
[1756289831151,0.02,4618.8,4618.7,11.56459304]
[1756289832540,0.02,4618.8,4618.7,11.67259304]
[1756289832736,0.02,4618.8,4618.7,8.03559304]
[1756289832943,0.02,4618.8,4618.7,11.11909304]
[1756289833140,0.02,4618.8,4618.7,7.92759304]
[1756289833454,0.02,4618.8,4618.7,11.56359304]
[1756289834019,0.02,4618.8,4618.7,8.56359304]
[1756289834753,0.02,4618.8,4618.7,8.11909304]
[1756289834922,0.02,4618.8,4618.7,4.92759304]
[1756289835123,0.02,4618.8,4618.7,8.56359304]
[1756289835323,0.02,4618.8,4618.7,4.19109304]
[1756289835518,0.02,4618.8,4618.7,0.108]
[1756289835519,0.1302,4618.8,4618.7,0.108]
[1756289835753,0.1302,4618.8,4618.6,0.001]
[1756289835754,0.5686,4618.8,4618.6,0.001]
[1756289836054,0.5686,4618.8,4618.7,3.529]
[1756289836557,0.5686,4618.8,4618.6,0.001]
[1756289836558,2.16511139,4618.7,4618.6,0.001]
[1756289836719,5.16511139,4618.7,4618.6,3.637]
[1756289836919,5.16511139,4618.7,4618.6,0.001]
[1756289836920,2.71371139,4618.7,4618.6,0.001]
[1756289837136,2.71291139,4618.7,4618.6,0.001]
[1756289838739,2.71291139,4618.7,4618.6,1e-08]
[1756289838933,2.16548647,4617.9,4617.5,1.665]
[1756289839133,11.33356265,4617.9,4617.5,1.356]
[1756289839371,11.99016265,4617.9,4616.7,1.665]
[1756289839656,12.64155765,4617.9,4616.9,0.579]
[1756289840046,12.64155765,4617.9,4616.7,1.665]
[1756289840260,2.16600242,4616.8,4616.7,1.665]
[1756289840463,2.16600242,4616.8,4615.8,0.021]
[1756289840464,2.1661901,4616.4,4616.3,2.829]
[1756289840772,2.8227901,4616.4,4615.9,1.665]
[1756289841061,2.16623702,4616.3,4615.9,1.665]
[1756289841373,2.16623702,4616.3,4616.0,3.636]
[1756289841374,2.59193702,4616.3,4616.0,3.636]
[1756289841691,0.1259,4616.2,4616.0,3.636]
[1756289842176,11.88296013,4616.2,4615.9,1.665]
[1756289843233,5.71488395,4616.2,4615.9,1.665]
[1756289843429,5.71488395,4616.2,4615.8,0.021]
[1756289844124,0.1259,4616.2,4615.8,0.021]
[1756289844323,0.33900798,4616.3,4616.1,6.0656]
[1756289844563,0.651465,4616.4,4616.3,2.16623702]
[1756289844959,0.651465,4616.4,4616.3,2.92983702]
[1756289845229,2.16558026,4617.7,4616.3,1.5867837]
[1756289845436,2.16572096,4617.4,4616.4,0.453]
[1756289845637,2.16572096,4617.4,4616.5,2.16614298]
[1756289845968,2.16572096,4617.4,4616.2,2.16627719]
[1756289846168,0.4509,4617.3,4616.1,1.666]
[1756289846337,2.16589453,4617.1,4616.3,3.636]
[1756289846544,2.16584857,4617.2,4616.3,5.80223013]
[1756289846742,2.16587098,4617.1,4616.3,4.089]
[1756289846973,2.16591556,4617.0,4616.3,4.089]
[1756289847173,0.651363,4617.5,4616.3,6.25522531]
[1756289847472,2.1659028,4617.1,4616.3,4.089]
[1756289847662,2.16591765,4617.0,4616.3,4.089]
[1756289847967,2.16591765,4617.0,4616.3,6.25523554]
[1756289848141,2.16585156,4617.2,4616.3,6.25523554]
[1756289848341,2.16573235,4617.4,4616.3,6.25523554]
[1756289848859,2.16583169,4617.2,4616.4,2.6191901]
[1756289849191,5.81703852,4617.5,4616.5,0.453]